Workbook

Sheet Лист1
A1: год | B1: месяц | C1: доход | E1: доход нарастающим итогом за год | F1: формула
A2: 1 | B2: =SUM($A$2:A2) -> 1 | C2: 2730 | E2: =SUM($C$2:C2) -> 2730 | F2: " = сумм($c$2:c2) "
A3: 1 | B3: =SUM($A$2:A3) -> 2 | C3: 1884 | E3: =SUM($C$2:C3) -> 4614
A4: 1 | B4: =SUM($A$2:A4) -> 3 | C4: 2861 | E4: =SUM($C$2:C4) -> 7475
A5: 1 | B5: =SUM($A$2:A5) -> 4 | C5: 2556 | E5: =SUM($C$2:C5) -> 10031
A6: 1 | B6: =SUM($A$2:A6) -> 5 | C6: 2611 | E6: =SUM($C$2:C6) -> 12642
A7: 1 | B7: =SUM($A$2:A7) -> 6 | C7: 1972 | E7: =SUM($C$2:C7) -> 14614
A8: 1 | B8: =SUM($A$2:A8) -> 7 | C8: 1348 | E8: =SUM($C$2:C8) -> 15962
A9: 1 | B9: =SUM($A$2:A9) -> 8 | C9: 1288 | E9: =SUM($C$2:C9) -> 17250
A10: 1 | B10: =SUM($A$2:A10) -> 9 | C10: 2373 | E10: =SUM($C$2:C10) -> 19623
A11: 1 | B11: =SUM($A$2:A11) -> 10 | C11: 1075 | E11: =SUM($C$2:C11) -> 20698
A12: 1 | B12: =SUM($A$2:A12) -> 11 | C12: 2327 | E12: =SUM($C$2:C12) -> 23025
A13: 1 | B13: =SUM($A$2:A13) -> 12 | C13: 1655 | E13: =SUM($C$2:C13) -> 24680
A14: 2 | B14: =SUM($A$2:A2) -> 1 | C14: 1045 | E14: =SUM($C$14:C14) -> 1045 | F14: " =СУММ($C$14:C14) "
A15: 2 | B15: =SUM($A$2:A3) -> 2 | C15: 1667 | E15: =SUM($C$14:C15) -> 2712
A16: 2 | B16: =SUM($A$2:A4) -> 3 | C16: 1615 | E16: =SUM($C$14:C16) -> 4327
A17: 2 | B17: =SUM($A$2:A5) -> 4 | C17: 2134 | E17: =SUM($C$14:C17) -> 6461
A18: 2 | B18: =SUM($A$2:A6) -> 5 | C18: 1278 | E18: =SUM($C$14:C18) -> 7739
A19: 2 | B19: =SUM($A$2:A7) -> 6 | C19: 1374 | E19: =SUM($C$14:C19) -> 9113
A20: 2 | B20: =SUM($A$2:A8) -> 7 | C20: 1362 | E20: =SUM($C$14:C20) -> 10475
A21: 2 | B21: =SUM($A$2:A9) -> 8 | C21: 1303 | E21: =SUM($C$14:C21) -> 11778
A22: 2 | B22: =SUM($A$2:A10) -> 9 | C22: 2370 | E22: =SUM($C$14:C22) -> 14148
A23: 2 | B23: =SUM($A$2:A11) -> 10 | C23: 1465 | E23: =SUM($C$14:C23) -> 15613
A24: 2 | B24: =SUM($A$2:A12) -> 11 | C24: 2117 | E24: =SUM($C$14:C24) -> 17730
A25: 2 | B25: =SUM($A$2:A13) -> 12 | C25: 2448 | E25: =SUM($C$14:C25) -> 20178
A26: 3 | B26: =SUM($A$2:A2) -> 1 | C26: 2377 | E26: =SUM($C$26:C26) -> 2377 | F26: " =СУММ($C$26:C26) "
A27: 3 | B27: =SUM($A$2:A3) -> 2 | C27: 2256 | E27: =SUM($C$26:C27) -> 4633
A28: 3 | B28: =SUM($A$2:A4) -> 3 | C28: 1194 | E28: =SUM($C$26:C28) -> 5827
A29: 3 | B29: =SUM($A$2:A5) -> 4 | C29: 2796 | E29: =SUM($C$26:C29) -> 8623
A30: 3 | B30: =SUM($A$2:A6) -> 5 | C30: 1712 | E30: =SUM($C$26:C30) -> 10335
A31: 3 | B31: =SUM($A$2:A7) -> 6 | C31: 1668 | E31: =SUM($C$26:C31) -> 12003
A32: 3 | B32: =SUM($A$2:A8) -> 7 | C32: 2148 | E32: =SUM($C$26:C32) -> 14151
A33: 3 | B33: =SUM($A$2:A9) -> 8 | C33: 2023 | E33: =SUM($C$26:C33) -> 16174
A34: 3 | B34: =SUM($A$2:A10) -> 9 | C34: 2994 | E34: =SUM($C$26:C34) -> 19168
A35: 3 | B35: =SUM($A$2:A11) -> 10 | C35: 2518 | E35: =SUM($C$26:C35) -> 21686
A36: 3 | B36: =SUM($A$2:A12) -> 11 | C36: 2948 | E36: =SUM($C$26:C36) -> 24634
A37: 3 | B37: =SUM($A$2:A13) -> 12 | C37: 2107 | E37: =SUM($C$26:C37) -> 26741
